bitfinex-derivatives/quotes_ETHF0:USTF0_20251012
["timestamp","ask_amount","ask_price","bid_price","bid_amount"]
[1760297919763,3.64628959,4123.4,4123.2,0.24488942]
[1760297921257,1.0302,4123.3,4123.2,0.24488942]
[1760297925157,1.0302,4123.3,4123.2,0.55568942]
[1760297925357,3.64630959,4123.4,4123.3,0.4515]
[1760297925659,4.22200959,4123.4,4123.3,0.5667]
[1760297925963,0.9918,4123.3,4123.2,0.24488942]
[1760297927264,0.9918,4123.3,4122.0,3.6219]
[1760297927265,0.9918,4122.1,4122.0,0.72055]
[1760297927459,0.9918,4122.1,4122.0,0.2842]
[1760297928354,0.9918,4122.1,4122.0,0.28734923]
[1760297928556,0.9918,4122.1,4122.0,0.00314923]
[1760297929257,1.14076,4121.1,4121.0,0.5667]
[1760297929457,0.2882,4120.4,4120.3,4.1886]
[1760297929664,0.182,4121.0,4120.9,0.2825]
[1760297929864,0.4702,4121.0,4120.9,0.5667]
[1760297930065,3.2078,4121.2,4121.0,0.4141]
[1760297930362,0.43645,4121.1,4120.9,0.00185341]
[1760297930665,0.7577,4121.0,4120.9,0.00185341]
[1760297930865,1.1738,4121.0,4120.9,0.00185341]
[1760297931365,1.1738,4121.0,4120.9,0.28605341]
[1760297932959,0.43843544,4121.1,4120.9,0.28605341]
[1760297932960,0.00198544,4121.1,4121.0,0.4141]
[1760297933162,0.70628544,4121.1,4121.0,0.9808]
[1760297933361,0.99378544,4121.1,4120.9,0.00185341]
[1760297933564,1.1738,4121.0,4120.9,0.00185341]
[1760297935665,1.1738,4121.0,4119.8,3.2078]
[1760297935666,0.7043,4120.5,4120.4,0.9808]
[1760297935863,0.5981,4121.0,4120.9,0.2842]
[1760297936167,0.70628544,4121.1,4121.0,0.6983]
[1760297936373,0.99378544,4121.1,4121.0,0.9808]
[1760297936567,0.99378544,4121.1,4121.0,0.56872836]
[1760297936870,0.00198544,4121.1,4121.0,1.14962836]
[1760297938359,0.00198544,4121.1,4121.0,0.98282836]
[1760297938558,0.00198544,4121.1,4121.0,1.14962836]
[1760297943671,0.00198544,4121.1,4121.0,1.58608836]
[1760297945376,3.2078,4121.7,4121.6,1.4485]
[1760297946178,3.20980019,4121.7,4121.6,1.4485]
[1760297947068,0.86341751,4122.9,4121.6,1.4485]
[1760297947069,3.2078,4122.3,4122.2,0.43634]
[1760297947274,3.2078,4122.3,4122.2,1.44844]
[1760297947976,3.2078,4122.9,4122.8,1.44837]
[1760297948279,3.21043408,4122.9,4122.8,1.44837]
[1760297951577,0.00263408,4122.9,4122.8,1.44837]
[1760297953084,3.2078,4123.4,4123.3,1.44832]
[1760297954088,3.21015281,4123.4,4123.3,1.44832]
[1760297955083,0.00235281,4123.4,4123.3,1.44832]
[1760297961889,4.67316281,4123.4,4122.8,0.4183]
[1760297962089,4.23695281,4123.4,4122.5,4.46855]
[1760297962294,4.22586281,4123.4,4123.0,0.85455]
[1760297962497,0.75,4123.3,4123.2,0.2982]
[1760297962687,1.0268,4123.3,4123.2,0.5938]
[1760297962887,1.0268,4123.3,4123.2,1.44833]
[1760297962888,0.7241,4123.3,4123.2,1.44833]
[1760297963798,1.0268,4123.3,4123.2,0.5938]
[1760297964887,1.0268,4123.3,4123.2,1.0121]
[1760297965197,1.0268,4123.3,4123.2,1.44833]
[1760297966595,0.2768,4122.8,4122.7,0.7165]
[1760297966798,3.21015281,4123.4,4122.2,1.0121]
[1760297966799,1.0268,4122.3,4122.2,1.0121]
[1760297967097,0.4473,4122.2,4122.0,3.2078]
[1760297967403,1.0268,4122.1,4122.0,0.5938]
[1760297967699,1.0268,4122.1,4122.0,1.0121]
[1760297967888,1.0268,4122.1,4122.0,1.44846]
[1760297968493,1.0268,4122.1,4122.0,1.0121]
[1760297969099,1.0268,4122.1,4122.0,1.44846]
[1760297970402,0.7241,4122.1,4122.0,1.44846]
[1760297971898,1.0268,4122.1,4122.0,1.0121]
[1760297973902,0.88646,4122.0,4121.6,10.4578]
[1760297974098,0.9886,4121.7,4121.6,11.1572]
[1760297974405,0.7136,4121.7,4121.6,11.1572]
[1760297974602,3.5039,4122.2,4122.1,0.9792]
[1760297974796,4.1964,4122.2,4122.1,0.9792]
[1760297975703,1.30445914,4125.5,4122.0,0.43636]
[1760297975704,3.2078,4122.7,4122.6,1.4155]
[1760297976797,0.4175,4123.6,4122.6,1.4155]
[1760297976996,3.21015281,4123.4,4123.3,0.9792]
[1760297977197,3.92375281,4123.4,4123.3,0.9792]
[1760297977599,4.19875281,4123.4,4123.0,0.1689]
[1760297977794,0.5711,4123.1,4123.0,0.6845]
[1760297977999,0.9886,4123.1,4123.0,0.5745]
[1760297978196,0.9886,4123.1,4123.0,0.9792]
[1760297981096,0.5711,4123.1,4123.0,0.2798]
[1760297981303,0.5711,4123.1,4123.0,0.5745]
[1760297981701,0.9886,4123.1,4123.0,0.9792]
[1760297982795,0.9886,4123.1,4122.3,3.0061086]
[1760297982796,0.1751,4123.0,4122.3,3.0061086]
[1760297983003,0.9886,4122.4,4122.3,3.2859086]
[1760297983204,0.9886,4122.4,4122.3,0.2798]
[1760297983401,0.9886,4122.4,4122.0,0.43635]
[1760297983703,3.81921,4122.5,4122.4,0.2798]
[1760297983909,3.3829,4123.0,4122.4,0.9792]
[1760297984109,0.2961,4122.5,4122.4,0.5745]
[1760297984304,0.7136,4122.5,4122.4,0.5745]
[1760297984709,0.7136,4122.5,4122.4,0.9792]
[1760297985104,0.9886,4122.5,4122.4,0.9792]
[1760297985406,1.1637,4122.5,4122.4,0.9792]
[1760297985610,4.3715,4122.5,4122.4,0.9792]
[1760297986707,3.5039,4122.5,4122.4,0.9792]
[1760297987015,3.9109,4122.5,4122.4,0.9792]
[1760297987712,4.3796,4122.5,4122.4,0.9792]
[1760297988009,4.3796,4122.5,4122.2,0.43633]
[1760297988206,3.9537,4122.5,4122.4,0.73292]
[1760297988403,3.9537,4122.5,4122.4,1.41442]
[1760297988606,3.7786,4122.5,4122.4,1.41442]
[1760297988809,4.2045,4122.5,4122.4,1.41442]
[1760297990103,4.2045,4122.5,4122.4,0.9781]
[1760297990707,4.2045,4122.5,4122.4,1.41442]
[1760297990905,4.2045,4122.5,4121.0,0.1677]
[1760297990906,14.44788761,4122.5,4121.0,0.1677]
[1760297991104,3.2078,4121.1,4121.0,1.1458]
[1760297991305,3.2078,4121.1,4121.0,4.8781906]
[1760297992002,3.2078,4121.1,4121.0,4.88076144]
[1760297995510,3.64425,4121.1,4121.0,1.14837084]
[1760297996513,3.64425,4121.1,4121.0,0.87207084]
[1760297996710,3.64425,4121.1,4121.0,0.57547084]
[1760297996910,3.64425,4121.1,4120.0,0.1677]
[1760297996911,0.43656,4120.1,4120.0,0.47841484]
[1760297997111,3.64436,4120.1,4120.0,0.1403109]
[1760297997414,0.43661,4119.6,4119.5,0.1677]
[1760297997608,3.64441,4119.6,4119.5,0.1677]
[1760297997906,3.64668088,4119.6,4119.5,0.17084483]
[1760297999613,3.64668088,4119.6,4119.5,0.00314483]
[1760297999911,6.74080979,4119.6,4119.5,0.00314483]
[1760298000112,0.43667,4119.1,4119.0,0.5729]
[1760298000322,3.2078,4119.1,4119.0,0.5729]
[1760298001007,3.2078,4119.1,4119.0,0.57594924]
[1760298001208,3.2078,4119.1,4119.0,1.14884924]
[1760298001910,3.2078,4119.1,4119.0,5.31791984]
[1760298002113,3.2078,4119.1,4119.0,4.88123984]
[1760298006112,1.09128,4120.6,4120.1,0.477]
[1760298006321,4.18815,4120.2,4120.1,0.7465]
[1760298006520,4.63645,4120.2,4120.1,0.7465]
[1760298006924,0.70649,4119.9,4119.8,0.7465]
[1760298007216,0.70960631,4119.9,4119.8,1.0148]
[1760298007416,0.98350631,4119.9,4119.8,1.0148]
[1760298007625,0.98350631,4119.9,4119.8,0.7465]
[1760298007813,0.2699,4119.6,4119.5,0.9376]
[1760298008215,0.2699,4119.6,4119.5,4.23115972]
[1760298008411,0.2699,4119.6,4119.0,3.81521924]
[1760298008412,0.43667,4119.1,4119.0,0.17074924]
[1760298008717,0.98047,4119.1,4119.0,0.91724924]
[1760298008917,0.98047,4119.1,4119.0,4.21080896]
[1760298009218,0.98047,4119.1,4119.0,4.47910896]
[1760298009521,3.2078,4119.6,4119.5,1.2059]
[1760298010413,0.45141631,4119.9,4119.8,0.477]
[1760298010414,0.00311631,4119.9,4119.8,0.477]
[1760298010811,0.00311631,4119.9,4119.8,3.77055972]
[1760298012228,0.4483,4119.8,4119.2,0.477]
[1760298012419,0.43664,4119.4,4119.1,3.2078]
[1760298012619,0.4483,4119.3,4119.1,6.97835972]
[1760298012821,0.43662,4119.6,4119.2,0.477]
[1760298013025,0.4483,4119.5,4119.4,0.477]
[1760298013422,0.4366,4119.7,4119.1,3.2078]
[1760298013625,0.43661,4119.6,4119.4,0.43663]
[1760298013924,0.43661,4119.6,4119.5,0.477]
[1760298014124,0.00311631,4119.9,4119.6,0.477]
[1760298014327,0.00311631,4119.9,4119.8,0.91359]
[1760298015522,0.4366,4119.8,4119.7,0.477]
[1760298015725,0.00311631,4119.9,4119.8,0.91359]
[1760298015926,0.00311631,4119.9,4119.8,0.477]
[1760298016122,0.43969631,4119.9,4119.8,0.477]
[1760298017127,0.43969631,4119.9,4119.8,0.91359]
[1760298017325,0.00311631,4119.9,4119.8,0.91359]
[1760298018629,0.00311631,4119.9,4119.8,4.20714972]
[1760298021027,3.64426,4121.1,4120.7,0.43649]
[1760298021327,0.4483,4121.0,4120.8,0.91349]
[1760298021521,0.4483,4121.0,4120.9,0.43648]
[1760298021916,0.45137808,4121.0,4120.9,0.43648]
[1760298022130,0.88783808,4121.0,4120.9,0.43648]
[1760298022428,0.88478,4120.9,4120.8,0.91349]
[1760298022618,0.00307808,4121.0,4120.8,0.477]
[1760298022823,0.00307808,4121.0,4120.9,0.91348]
[1760298023827,0.54687808,4121.0,4120.9,1.18298]
[1760298024028,0.98333808,4121.0,4120.9,1.18298]
[1760298024229,1.43163808,4121.0,4120.9,1.18298]
[1760298024632,0.54687808,4121.0,4120.9,1.18298]
[1760298024931,0.98333808,4121.0,4120.9,1.18298]
[1760298025121,0.54687808,4121.0,4120.9,1.18298]
[1760298025731,0.54687808,4121.0,4120.9,1.45128]
[1760298026030,0.00307808,4121.0,4120.9,1.53703972]
[1760298026325,0.54687808,4121.0,4120.9,4.65908]
[1760298026531,0.00307808,4121.0,4120.9,4.74483972]
[1760298027828,0.27297808,4121.0,4120.9,4.74483972]
[1760298028236,0.70943808,4121.0,4120.9,4.74483972]
[1760298029134,0.27297808,4121.0,4120.9,4.74483972]
[1760298029732,0.70943808,4121.0,4120.9,4.30835972]
[1760298030135,1.43163808,4121.0,4120.9,3.9543]
[1760298030327,0.4365,4120.7,4120.6,0.477]
[1760298030523,1.4286,4120.7,4120.6,0.56275972]
[1760298031625,0.5438,4120.5,4120.4,3.4773]
[1760298031830,0.43649,4120.8,4120.7,0.2695]
[1760298032125,0.43648,4120.9,4120.8,0.477]
[1760298032432,0.70638,4120.9,4120.8,0.7465]
[1760298032635,0.99708,4120.9,4120.8,0.7465]
[1760298033630,0.99708,4120.9,4120.8,1.18299]
[1760298033823,0.99708,4120.9,4120.8,1.50019]
[1760298035340,0.00307808,4121.0,4120.9,1.53308]
[1760298035631,0.00307808,4121.0,4120.9,1.61883972]
[1760298035830,0.00307808,4121.0,4120.9,4.82663972]
[1760298037032,3.2078,4122.7,4122.4,0.478]
[1760298037235,0.2981,4122.5,4122.4,1.0966]
[1760298038032,0.30018008,4122.5,4122.4,1.09948654]
[1760298040239,0.00208008,4122.5,4122.4,1.09948654]
[1760298040928,0.01208008,4122.5,4122.4,1.09948654]
[1760298043042,0.2981,4123.3,4123.2,1.05482]
[1760298043237,0.2981,4123.3,4123.2,1.0966]
[1760298044042,0.30046988,4123.3,4123.2,1.0966]
[1760298045350,0.30046988,4123.3,4123.2,1.53283]
[1760298046047,1.04438988,4123.3,4123.2,1.0966]
[1760298046344,0.60816988,4123.3,4123.2,1.0966]
[1760298046940,0.43628,4122.8,4122.6,3.6882]
[1760298047140,1.07758988,4123.3,4123.2,0.3109]
[1760298047347,1.07758988,4123.3,4123.2,1.1131]
[1760298047844,0.64136988,4123.3,4123.2,1.54933]
[1760298048250,1.07758988,4123.3,4123.2,1.54933]
[1760298048441,0.33366988,4123.3,4123.2,4.75713]
[1760298048845,0.33366988,4123.3,4123.2,1.54933]
[1760298049345,0.64136988,4123.3,4123.2,1.54933]
[1760298049540,1.09276988,4123.3,4123.2,1.22753]
[1760298049741,0.64136988,4123.3,4123.2,1.54933]
[1760298050045,1.07758988,4123.3,4123.2,1.54933]
[1760298050946,1.07758988,4123.3,4123.2,1.1131]
[1760298051141,0.64136988,4123.3,4123.2,1.54933]
[1760298051547,1.07758988,4123.3,4123.2,1.54933]
[1760298052543,1.07758988,4123.3,4123.2,1.1131]
[1760298053249,1.07758988,4123.3,4123.2,1.54933]
[1760298054352,0.00236988,4123.3,4123.2,4.75713]
[1760298060756,1.52899988,4123.3,4123.2,3.9991]
[1760298061459,1.52899988,4123.3,4123.2,4.3209]
[1760298061752,1.52899988,4123.3,4123.2,4.75714]
[1760298061955,0.00236988,4123.3,4123.2,4.75714]
[1760298062149,0.43859988,4123.3,4123.2,4.75714]
[1760298062350,0.76989988,4123.3,4123.2,4.75714]
[1760298062751,0.33366988,4123.3,4123.2,4.75714]
[1760298063457,0.76989988,4123.3,4123.2,4.75714]
[1760298063956,0.33366988,4123.3,4123.2,4.75714]
[1760298064152,0.76989988,4123.3,4123.2,4.75714]
[1760298064760,0.76989988,4123.3,4123.2,4.3209]
[1760298065258,0.43631,4122.6,4122.5,0.995]
[1760298065559,1.50191,4122.6,4122.5,0.8036]
[1760298066754,1.25858,4123.0,4122.2,3.6908]
[1760298066755,1.50192,4122.5,4122.2,3.6908]
[1760298067052,1.60352,4122.5,4122.2,3.2078]
[1760298067258,1.60352,4122.5,4121.5,10.8514]
[1760298067259,1.04571,4121.6,4121.5,14.0592]
[1760298067458,1.04571,4121.6,4121.5,14.6991]
[1760298067855,1.50201,4121.6,4121.5,14.6991]
[1760298068258,1.50201,4121.6,4121.5,13.38756649]
[1760298069354,1.50201,4121.6,4121.5,13.87056649]
[1760298069553,1.0656,4122.4,4122.3,0.3206]
[1760298069753,1.50193,4122.4,4122.3,0.8036]
[1760298072865,1.50193,4122.4,4122.3,0.483]
[1760298074167,1.50193,4122.4,4122.3,1.23994]
[1760298074864,0.6093,4122.9,4122.8,0.8036]
[1760298075066,1.50188,4122.9,4122.8,0.8036]
[1760298075266,1.50188,4122.9,4122.8,1.23989]
[1760298076672,1.0456,4122.7,4122.6,0.7569]
[1760298076970,1.5019,4122.7,4122.6,1.2399]
[1760298078964,1.0656,4122.7,4122.6,1.2399]
[1760298081975,1.5019,4122.7,4122.6,1.2399]
[1760298082171,0.43635,4122.2,4122.1,0.43635]
[1760298082377,1.0656,4122.1,4122.0,4.63947]
[1760298084069,1.0656,4122.1,4122.0,4.95847]
[1760298084270,0.6093,4122.1,4122.0,4.95847]
[1760298085677,1.0656,4122.1,4122.0,4.95847]
[1760298086079,1.50196,4122.1,4122.0,4.5221]
[1760298086377,1.0656,4121.6,4121.5,4.64227649]
[1760298086575,1.0656,4121.6,4121.5,4.20586649]
[1760298086876,1.50201,4121.6,4121.5,4.20586649]
[1760298087779,0.74658,4121.9,4121.8,1.1226]
[1760298087980,1.50198,4121.9,4121.8,1.1226]
[1760298088181,0.4364,4121.7,4121.5,3.83868649]
[1760298088380,1.502,4121.7,4121.6,0.8036]
[1760298088879,1.0656,4121.7,4121.6,1.24001]
[1760298090481,1.0656,4121.7,4121.6,0.8036]
[1760298090875,0.43641,4121.6,4121.5,3.21056649]
[1760298091081,1.47866621,4121.0,4120.9,0.483]
[1760298091275,1.47866621,4121.0,4120.9,0.8036]
[1760298091472,1.47866621,4121.0,4120.4,3.2078]
[1760298091473,0.4563,4120.5,4120.4,3.2078]
[1760298091677,1.0656,4120.5,4120.4,4.0114]
[1760298091982,1.0656,4120.5,4120.4,3.20960634]
[1760298092580,1.1554,4120.5,4120.4,3.20960634]
[1760298092780,1.1554,4120.5,4120.4,0.00180634]
[1760298095089,1.0656,4120.5,4120.4,0.00180634]
[1760298095382,1.1554,4120.5,4120.4,0.00180634]
[1760298096884,1.1654,4120.5,4120.4,0.00180634]
[1760298098283,0.01,4120.5,4120.4,6.12545625]
[1760298098489,0.3306,4120.5,4120.4,6.12545625]
[1760298099091,0.01,4120.5,4120.4,6.12545625]
[1760298099485,0.01,4120.5,4120.4,4.72734634]
[1760298099679,1.55656,4121.2,4121.1,0.43647]
[1760298100293,0.6484,4121.2,4121.1,1.51767]
[1760298100687,1.1201,4121.2,4121.1,1.51767]
[1760298101983,2.8911,4121.2,4121.1,1.51767]
[1760298102490,3.32756,4121.2,4121.1,0.457]
[1760298102689,1.55657,4121.1,4121.0,1.19467]
[1760298102890,1.55657,4121.1,4121.0,1.38407]
[1760298103188,1.55657,4121.1,4121.0,1.70707]
[1760298104989,0.6484,4121.1,4121.0,1.70707]
[1760298108593,1.08487,4121.1,4121.0,1.70707]
[1760298108888,1.08487,4121.1,4121.0,0.9476]
[1760298109095,0.4635,4120.5,4120.4,3.68190634]
[1760298109290,1.62043,4120.5,4120.4,3.20960634]
[1760298109792,3.01853991,4120.5,4120.4,0.00180634]
[1760298109991,6.22633991,4120.5,4120.4,0.00180634]
[1760298110595,7.38607712,4120.5,4120.4,0.00180634]
[1760298110794,4.82823,4120.5,4120.4,0.00180634]
[1760298113099,6.59923,4120.5,4120.4,0.00180634]
[1760298114488,1.28423803,4120.5,4120.4,4.73634634]
[1760298114894,4.3004,4121.1,4121.0,0.92968]
[1760298115097,4.3004,4121.1,4121.0,1.40198]
[1760298115291,1.0926,4121.1,4121.0,1.40198]
[1760298115997,0.6291,4120.9,4120.8,0.43649]
[1760298116196,1.0926,4120.9,4120.8,0.43649]
[1760298116496,1.52909,4120.9,4120.8,0.90879]
[1760298116684,0.43653,4120.5,4120.4,3.20960634]
[1760298116892,1.52913,4120.5,4120.4,3.20960634]
[1760298117091,1.52913,4120.5,4120.4,0.43834634]
[1760298117295,0.4635,4120.9,4120.8,0.4365]
[1760298117496,0.6291,4120.7,4120.6,1.22072]
[1760298117799,1.52911,4120.7,4120.6,0.43652]
[1760298118699,1.52911,4120.7,4120.6,0.90882]
[1760298118896,1.0926,4120.7,4120.6,1.22072]
[1760298119099,0.6291,4120.7,4120.6,1.52672]
[1760298120003,0.3205,4120.7,4120.6,1.52672]
[1760298120204,0.6291,4120.7,4120.6,1.52672]
[1760298120500,1.0926,4120.7,4120.6,1.52672]
[1760298120698,1.0926,4120.7,4120.6,1.22072]
[1760298121196,1.52911,4120.7,4120.6,0.43652]
[1760298121402,0.6291,4120.5,4120.4,4.73633634]
[1760298122397,1.0926,4120.5,4120.4,3.64613634]
[1760298122601,1.0926,4120.5,4120.4,4.38543634]
[1760298122904,1.52913,4120.5,4120.4,3.94890634]
[1760298123108,1.52913,4120.5,4120.4,4.38544634]
[1760298123405,1.0926,4120.5,4120.4,4.38544634]
[1760298124099,1.0926,4120.5,4120.4,1.17764634]
[1760298124998,0.6291,4120.5,4120.4,1.49974634]
[1760298125491,0.7291,4120.5,4120.4,1.49974634]
[1760298125804,1.1907,4120.5,4120.4,0.43834634]
[1760298126001,1.2744,4120.5,4120.4,0.43834634]
[1760298126307,0.7291,4120.5,4120.4,1.49974634]
[1760298126609,0.4178,4120.5,4120.4,1.49974634]
[1760298127302,0.7358,4120.5,4120.4,1.49974634]
[1760298127606,1.1974,4120.5,4120.4,1.49974634]
[1760298127897,1.1974,4120.5,4120.4,1.17764634]
[1760298129801,1.1974,4120.5,4120.4,0.43834634]
[1760298130102,2.67920991,4120.5,4120.4,0.00180634]
[1760298130294,1.70188,4120.0,4119.9,3.2078]
[1760298131403,1.70463065,4120.0,4119.9,3.20955928]
[1760298132203,1.10015065,4120.0,4119.9,3.20955928]
[1760298132394,1.26805065,4120.0,4119.9,3.20955928]
[1760298132601,1.26805065,4120.0,4119.9,0.00175928]
[1760298133604,1.10015065,4120.0,4119.9,0.00175928]
[1760298133797,1.26805065,4120.0,4119.9,0.00175928]
[1760298134306,1.26805065,4120.0,4119.0,0.61798]
[1760298134307,0.6358,4119.1,4119.0,0.61798]
[1760298134512,1.0974,4119.1,4119.0,1.17598]
[1760298134802,1.0974,4119.1,4119.0,0.4478]
[1760298135004,1.0974,4119.1,4118.8,3.2078]
[1760298135005,1.0974,4118.9,4118.8,3.9471]
[1760298135412,1.0974,4118.9,4118.8,3.94896261]
[1760298135805,1.0974,4118.9,4118.8,4.27106261]
[1760298136008,0.6358,4118.9,4118.8,4.27106261]
[1760298136312,1.0974,4118.9,4118.8,3.94896261]
[1760298136704,1.0974,4118.9,4118.8,3.20966261]
[1760298137511,1.0974,4118.9,4118.8,3.65746261]
[1760298137809,1.0974,4118.9,4118.8,3.20966261]
[1760298138409,1.0974,4118.9,4118.8,3.94896261]
[1760298139809,0.6358,4118.9,4118.8,3.94896261]
[1760298140014,0.6358,4118.9,4118.8,4.27106261]
[1760298140509,0.43662,4119.7,4119.2,0.6136]
[1760298140810,0.17065065,4120.0,4118.9,1.49809]
[1760298140811,0.6358,4119.0,4118.9,1.49809]
[1760298141112,1.0974,4119.0,4118.9,0.4478]
[1760298141508,0.6358,4119.0,4118.8,3.20966261]
[1760298141703,1.0974,4118.9,4118.8,3.20966261]
[1760298141908,1.0974,4118.9,4118.8,3.94896261]
[1760298143805,0.6358,4118.9,4118.8,4.27106261]
[1760298147711,0.3178,4118.9,4118.8,4.27106261]
[1760298147915,0.43666,4119.4,4119.3,0.7393]
[1760298147916,1.53406,4119.4,4119.3,0.7393]
[1760298148321,0.6358,4119.2,4119.1,0.72818]
[1760298148520,1.53407,4119.2,4119.1,1.17598]
[1760298149423,1.0974,4119.2,4119.1,1.17598]
[1760298152613,0.6209,4118.9,4118.8,4.41566261]
[1760298152819,0.6209,4118.9,4118.8,4.70596261]
[1760298153317,1.0829,4118.9,4118.8,4.41566261]
[1760298153523,0.6209,4118.9,4118.8,4.70596261]
[1760298154924,0.319,4118.9,4118.8,4.70596261]
[1760298156223,0.319,4119.4,4119.0,0.1886]
[1760298156420,1.0829,4119.4,4119.3,1.0596]
[1760298157624,1.0829,4119.4,4119.3,0.7693]
[1760298158530,1.0829,4119.4,4119.3,1.20596]
[1760298162121,0.319,4119.9,4119.8,1.1946]
[1760298162320,0.00275065,4120.0,4119.9,1.0596]
[1760298162520,0.32175065,4120.0,4119.9,1.0596]
[1760298162721,0.00275065,4120.0,4119.9,1.0596]
[1760298166919,0.1,4120.5,4119.9,1.0596]
[1760298166920,0.1,4120.5,4120.4,1.04024]
[1760298167121,0.1,4120.5,4120.4,4.71284]
[1760298167924,0.10267151,4120.5,4120.4,4.71284]
[1760298171027,0.10267151,4120.5,4120.4,1.50504]
[1760298171222,0.10267151,4120.5,4120.4,4.71284]
[1760298172619,3.64425,4121.3,4121.2,1.0685]
[1760298173025,3.94955,4121.3,4121.2,1.0685]
[1760298173332,4.24935,4121.3,4121.2,1.0685]
[1760298173533,4.25141734,4121.3,4121.2,1.0685]
[1760298173834,1.04361734,4121.3,4121.2,1.0685]
[1760298174029,0.00206734,4121.3,4121.2,1.50496]
[1760298178530,1.49771734,4121.3,4121.2,0.4648]
[1760298178830,1.49771734,4121.3,4121.2,3.12358207]
[1760298178831,0.00206734,4121.3,4121.2,3.12358207]
[1760298181737,0.10206734,4121.3,4121.2,1.50496]
[1760298182838,3.2078,4122.4,4122.1,1.04076]
[1760298183048,3.5087,4122.4,4122.3,1.48064]
[1760298183240,3.94503,4122.4,4122.3,1.0443]
[1760298183540,0.73723,4122.4,4122.3,1.0443]
[1760298183942,0.43926557,4122.4,4122.3,1.04617688]
[1760298184342,1.03476557,4122.4,4122.3,1.04617688]
[1760298184546,1.48786557,4122.4,4122.3,1.04617688]
[1760298185842,1.58786557,4122.4,4122.3,1.04617688]
[1760298186844,0.69843557,4122.4,4122.3,1.48251688]
[1760298187737,1.13476557,4122.4,4122.3,1.48251688]
[1760298188439,1.13476557,4122.4,4122.3,1.04617688]
[1760298189948,1.58786557,4122.4,4122.3,1.04617688]
[1760298190840,1.58786557,4122.4,4122.0,0.1696]
[1760298190841,0.3009,4121.1,4121.0,0.4869]
[1760298191047,0.43649,4120.9,4120.8,3.2078]
[1760298191248,1.48509,4120.9,4120.8,3.5117]
[1760298191446,1.48509,4120.9,4120.8,3.9516]
[1760298191843,1.03199,4120.9,4120.8,4.25493027]
[1760298192044,0.73739,4120.9,4120.8,4.25493027]
[1760298192243,1.03199,4120.9,4120.8,4.25493027]
[1760298192448,0.73739,4120.9,4120.8,4.25493027]
[1760298193948,1.03199,4120.9,4120.8,4.25493027]
[1760298194250,1.48509,4120.9,4120.8,1.04713027]
[1760298195354,1.03199,4120.9,4120.8,1.04713027]
[1760298197650,1.48509,4120.9,4120.8,1.04713027]
[1760298197952,1.03199,4120.9,4120.8,1.04713027]
[1760298200453,0.73739,4120.9,4120.8,1.48363027]
[1760298200856,0.43649,4120.9,4120.8,1.48363027]
[1760298201057,0.43649,4120.9,4120.8,1.04713027]
[1760298201390,0.73739,4120.9,4120.8,1.04713027]
[1760298202154,3.2078,4121.7,4120.9,0.4399]
[1760298202348,0.73731,4121.6,4121.5,0.774]
[1760298202548,1.48501,4121.6,4121.5,0.774]
[1760298202748,1.03191,4121.6,4121.5,0.774]
[1760298203057,1.03191,4121.6,4121.5,1.2139]
[1760298203457,1.48501,4121.6,4121.5,1.2139]
[1760298203756,1.48501,4121.6,4121.5,1.65033]
[1760298203757,0.43641,4121.6,4121.5,1.65033]
[1760298203955,1.03191,4121.6,4121.5,1.2139]
[1760298204456,1.48501,4121.6,4121.5,1.2139]
[1760298205958,1.48501,4121.6,4121.0,0.1696]
[1760298205959,0.43647,4121.1,4121.0,0.1696]
[1760298206159,1.03197,4121.1,4121.0,0.4735]
[1760298206361,1.03197,4121.1,4121.0,0.774]
[1760298206664,1.03197,4121.1,4121.0,1.2139]
[1760298207056,0.43647,4121.1,4121.0,1.2139]
[1760298207563,0.43646,4121.2,4121.1,1.04086]
[1760298207761,0.43646,4121.2,4121.1,1.48076]
[1760298207961,0.43646,4121.2,4121.0,0.1696]
[1760298207962,0.3009,4121.4,4121.3,1.48075]
[1760298208762,0.73734,4121.4,4121.3,1.48075]
[1760298209365,0.73731,4121.7,4121.6,1.0443]
[1760298209559,1.03191,4121.7,4121.6,1.0443]
[1760298210168,0.3009,4121.7,4121.6,1.0443]
[1760298210667,0.3009,4121.7,4121.6,1.48071]
[1760298211164,0.7373,4121.7,4121.6,1.48071]
[1760298211359,0.3009,4121.8,4121.7,0.4399]
[1760298211563,0.3009,4121.8,4121.7,1.0443]
[1760298212064,0.43637,4122.0,4121.8,0.4399]
[1760298212264,0.43637,4122.0,4121.9,0.6044]
[1760298212468,0.43637,4122.0,4121.9,1.0443]
[1760298212763,0.73727,4122.0,4121.9,1.0443]
[1760298213361,1.46647,4122.0,4121.9,1.0443]
[1760298213665,0.73791,4121.7,4121.6,1.0301]
[1760298213964,1.03611,4121.7,4121.6,1.0301]
[1760298214557,1.46381,4121.7,4121.6,1.0301]
[1760298214761,1.03612,4121.5,4121.4,3.6451]
[1760298214967,1.03612,4121.5,4121.4,4.2379]
[1760298215261,0.43641,4121.7,4121.6,0.5928]
[1760298215466,0.43641,4121.7,4121.6,1.0301]
[1760298215467,0.2982,4121.7,4121.6,1.0301]
[1760298215764,0.73459,4121.8,4121.7,1.0301]
[1760298215964,1.03609,4121.8,4121.7,1.0301]
[1760298216960,0.43639,4121.8,4121.7,1.0301]
[1760298218064,1.03606,4122.1,4122.0,1.1979]
[1760298218371,1.46376,4122.1,4122.0,1.1979]
[1760298218667,1.03606,4122.1,4122.0,1.1979]
[1760298220866,1.46376,4122.1,4122.0,1.1979]
[1760298226268,1.46376,4122.1,4121.7,0.4364]
[1760298226269,0.43639,4121.8,4121.7,0.4364]
[1760298226473,4.29871,4122.2,4121.5,0.43642]
[1760298226474,1.43541,4121.6,4121.5,0.43642]
[1760298226664,1.43541,4121.6,4121.5,0.4197]
[1760298226967,1.43543,4121.5,4121.4,4.06393]
[1760298227170,1.43543,4121.5,4121.4,4.34823]
[1760298228973,1.43543,4121.5,4121.4,4.63703]